[Event "Chpt France Universitaire 2024"]
[Site "Bastia, France"]
[Date "2024.04.06"]
[Round "1.7"]
[White "Gryshko, Vitalii"]
[Black "Goudet, Florian"]
[Result "1-0"]
[TimeControl "15min+5s"]
[WhiteElo "2288"]
[BlackElo "1199"]

1. Nf3 {[%clk 00:15:05]} c5 {[%clk 00:15:04]} {[%emt 00:00:07]} 2. e4 {[%clk
00:15:05]} {[%emt 00:00:01]} Nc6 {[%clk 00:15:04]} {[%emt 00:00:03]} 3. d4
{[%clk 00:15:03]} {[%emt 00:00:07]} cxd4 {[%clk 00:15:04]} {[%emt 00:00:04]} 4.
Nxd4 {[%clk 00:15:03]} {[%emt 00:00:02]} g6 {[%clk 00:15:04]} {[%emt 00:00:02]}
5. c4 {[%clk 00:15:03]} {[%emt 00:00:04]} Bg7 {[%clk 00:15:04]} {[%emt
00:00:03]} 6. Nc2 {[%clk 00:15:03]} {[%emt 00:00:02]} Nf6 {[%clk 00:14:56]}
{[%emt 00:00:13]} 7. Nc3 {[%clk 00:15:03]} {[%emt 00:00:01]} O-O {[%clk
00:14:45]} {[%emt 00:00:15]} 8. Be2 {[%clk 00:15:03]} {[%emt 00:00:04]} d6
{[%clk 00:14:36]} {[%emt 00:00:15]} 9. O-O {[%clk 00:15:03]} {[%emt 00:00:02]}
Be6 {[%clk 00:13:18]} {[%emt 00:01:23]} 10. f4 {[%clk 00:14:38]} {[%emt
00:00:30]} Rc8 {[%clk 00:11:47]} {[%emt 00:01:36]} 11. f5 {[%clk 00:14:38]}
{[%emt 00:00:02]} Bd7 {[%clk 00:11:45]} {[%emt 00:00:06]} 12. Be3 {[%clk
00:13:10]} {[%emt 00:01:32]} Ne5 {[%clk 00:10:43]} {[%emt 00:01:08]} 13. b3
{[%clk 00:12:23]} {[%emt 00:00:53]} Bc6 {[%clk 00:10:29]} {[%emt 00:00:19]} 14.
Bd3 {[%clk 00:11:09]} {[%emt 00:01:19]} Nfd7 {[%clk 00:09:11]} {[%emt
00:01:22]} 15. Rc1 {[%clk 00:09:29]} {[%emt 00:01:45]} Nxc4 {[%clk 00:07:41]}
{[%emt 00:01:36]} 16. Bxc4 {[%clk 00:09:00]} {[%emt 00:00:34]} Bxc3 {[%clk
00:07:41]} {[%emt 00:00:03]} 17. Nd4 {[%clk 00:08:14]} {[%emt 00:00:52]} Bxd4
{[%clk 00:06:11]} {[%emt 00:01:35]} 18. Qxd4 {[%clk 00:08:10]} {[%emt
00:00:08]} Ne5 {[%clk 00:04:36]} {[%emt 00:01:40]} 19. Bh6 {[%clk 00:08:10]}
Qb6 {[%clk 00:03:53]} {[%emt 00:00:49]} 20. Qxb6 {[%clk 00:08:09]} {[%emt
00:00:06]} axb6 {[%clk 00:03:53]} {[%emt 00:00:01]} 21. Bxf8 {[%clk 00:08:09]}
{[%emt 00:00:01]} Rxf8 {[%clk 00:03:51]} {[%emt 00:00:07]} 22. fxg6 {[%clk
00:08:09]} {[%emt 00:00:03]} hxg6 {[%clk 00:03:51]} {[%emt 00:00:02]} 23. Bd5
{[%clk 00:08:09]} {[%emt 00:00:02]} Kg7 {[%clk 00:03:27]} {[%emt 00:00:28]} 24.
Rc3 {[%clk 00:07:55]} {[%emt 00:00:19]} Ra8 {[%clk 00:03:01]} {[%emt 00:00:32]}
25. a4 {[%clk 00:07:37]} {[%emt 00:00:23]} Ra5 {[%clk 00:02:59]} {[%emt
00:00:06]} 26. Rd1 {[%clk 00:07:29]} {[%emt 00:00:12]} Kf8 {[%clk 00:01:54]}
{[%emt 00:01:11]} 27. Rd4 {[%clk 00:07:29]} {[%emt 00:00:05]} Ke8 {[%clk
00:01:28]} {[%emt 00:00:31]} 28. Bxc6+ {[%clk 00:06:36]} {[%emt 00:00:57]} bxc6
{[%clk 00:01:28]} {[%emt 00:00:03]} 29. Rb4 {[%clk 00:06:36]} {[%emt 00:00:02]}
Ra6 {[%clk 00:01:11]} {[%emt 00:00:22]} 30. Rd4 {[%clk 00:06:28]} {[%emt
00:00:12]} Kd7 {[%clk 00:01:10]} {[%emt 00:00:06]} 31. Kf2 {[%clk 00:06:05]}
{[%emt 00:00:29]} Ra8 {[%clk 00:01:01]} {[%emt 00:00:14]} 32. h3 {[%clk
00:06:05]} {[%emt 00:00:04]} Rh8 {[%clk 00:01:01]} {[%emt 00:00:02]} 33. b4
{[%clk 00:06:03]} {[%emt 00:00:08]} Ra8 {[%clk 00:00:53]} {[%emt 00:00:13]} 34.
Ra3 {[%clk 00:05:46]} {[%emt 00:00:21]} b5 {[%clk 00:00:31]} {[%emt 00:00:28]}
35. a5 {[%clk 00:05:42]} {[%emt 00:00:09]} Kc7 {[%clk 00:00:31]} 36. Rc3 {[%clk
00:05:33]} {[%emt 00:00:13]} Kb7 {[%clk 00:00:30]} {[%emt 00:00:06]} 37. g4
{[%clk 00:05:25]} {[%emt 00:00:12]} Rh8 {[%clk 00:00:21]} {[%emt 00:00:15]} 38.
Rd1 {[%clk 00:05:23]} {[%emt 00:00:07]} Ka6 {[%clk 00:00:18]} {[%emt 00:00:08]}
39. Kg3 {[%clk 00:05:18]} {[%emt 00:00:10]} g5 {[%clk 00:00:17]} {[%emt
00:00:07]} 40. Rh1 {[%clk 00:05:15]} {[%emt 00:00:07]} Rh4 {[%clk 00:00:17]}
{[%emt 00:00:02]} 41. Rf1 {[%clk 00:05:12]} {[%emt 00:00:08]} Rh7 {[%clk
00:00:17]} {[%emt 00:00:02]} 42. Rf5 {[%clk 00:05:12]} {[%emt 00:00:03]} f6
{[%clk 00:00:17]} {[%emt 00:00:04]} 43. Rxe5 {[%clk 00:05:12]} {[%emt
00:00:05]} dxe5 {[%clk 00:00:14]} {[%emt 00:00:08]} 44. Rxc6+ {[%clk 00:05:12]}
{[%emt 00:00:01]} Kb7 {[%clk 00:00:14]} 45. Rb6+ Ka7 {[%clk 00:00:14]} {[%emt
00:00:04]} 46. Rxb5 {[%clk 00:06:03]} {[%emt 00:00:10]} Rh8 {[%clk 00:00:14]}
{[%emt 00:00:43]} 47. Rd5 {[%clk 00:06:03]} {[%emt 00:00:04]} Kb7 {[%clk
00:00:14]} {[%emt 00:00:04]} 48. b5 {[%clk 00:06:03]} {[%emt 00:00:03]} Ra8
{[%clk 00:00:13]} {[%emt 00:00:06]} 49. a6+ {[%clk 00:05:00]} {[%emt 00:01:07]}
Kc7 {[%clk 00:00:13]} {[%emt 00:00:01]} 50. h4 {[%clk 00:04:57]} {[%emt
00:00:08]} gxh4+ {[%clk 00:00:12]} {[%emt 00:00:05]} 51. Kxh4 {[%clk 00:04:57]}
{[%emt 00:00:02]} Rh8+ {[%clk 00:00:12]} 52. Kg3 {[%clk 00:04:57]} {[%emt
00:00:01]} Rh1 {[%clk 00:00:12]} {[%emt 00:00:03]} 53. Rc5+ {[%clk 00:04:17]}
{[%emt 00:00:46]} Kb6 {[%clk 00:00:12]} {[%emt 00:00:02]} 54. Rc8 {[%clk
00:04:17]} Kxb5 {[%clk 00:00:12]} {[%emt 00:00:05]} 55. a7 {[%clk 00:04:17]}
{[%emt 00:00:01]} 1-0

[Event "Chpt France Universitaire 2024"]
[Site "Bastia, France"]
[Date "2024.04.06"]
[Round "1.8"]
[White "Sudja, Corentin"]
[Black "Eveno, Nathan"]
[Result "0-1"]
[TimeControl "15min+5s"]
[WhiteElo "1790"]
[BlackElo "2192"]

1. d4 {[%clk 00:15:05]} {[%emt 00:00:03]} d5 {[%clk 00:15:05]} {[%emt
00:00:02]} 2. c4 {[%clk 00:15:05]} {[%emt 00:00:01]} e6 {[%clk 00:15:05]}
{[%emt 00:00:01]} 3. Nf3 {[%clk 00:15:05]} {[%emt 00:00:01]} c6 {[%clk
00:15:05]} {[%emt 00:00:02]} 4. Qc2 {[%clk 00:15:05]} {[%emt 00:00:02]} dxc4
{[%clk 00:15:03]} {[%emt 00:00:07]} 5. Qxc4 {[%clk 00:15:05]} {[%emt 00:00:02]}
b5 {[%clk 00:15:03]} {[%emt 00:00:01]} 6. Qc2 {[%clk 00:15:00]} {[%emt
00:00:10]} Bb7 {[%clk 00:15:03]} {[%emt 00:00:01]} 7. g3 {[%clk 00:14:50]}
{[%emt 00:00:14]} Nd7 {[%clk 00:15:03]} {[%emt 00:00:02]} 8. Nc3 {[%clk
00:13:46]} {[%emt 00:01:09]} Rc8 {[%clk 00:14:45]} {[%emt 00:00:23]} 9. Bg2
{[%clk 00:13:39]} {[%emt 00:00:11]} c5 {[%clk 00:13:55]} {[%emt 00:00:56]} 10.
Nxb5 {[%clk 00:10:23]} {[%emt 00:03:20]} Qa5+ {[%clk 00:13:46]} {[%emt
00:00:14]} 11. Nc3 {[%clk 00:09:34]} {[%emt 00:00:55]} cxd4 {[%clk 00:13:46]}
{[%emt 00:00:03]} 12. Bd2 {[%clk 00:08:54]} {[%emt 00:00:44]} dxc3 {[%clk
00:13:43]} {[%emt 00:00:08]} 13. Bxc3 {[%clk 00:08:54]} {[%emt 00:00:01]} Bb4
{[%clk 00:13:35]} {[%emt 00:00:13]} 14. O-O {[%clk 00:08:50]} {[%emt 00:00:09]}
Bxc3 {[%clk 00:13:34]} {[%emt 00:00:06]} 15. bxc3 {[%clk 00:08:50]} {[%emt
00:00:01]} Ngf6 {[%clk 00:13:22]} {[%emt 00:00:17]} 16. Rfd1 {[%clk 00:08:26]}
{[%emt 00:00:29]} O-O {[%clk 00:13:11]} {[%emt 00:00:17]} 17. h4 {[%clk
00:07:01]} {[%emt 00:01:31]} Rxc3 {[%clk 00:12:55]} {[%emt 00:00:21]} 18. Qd2
{[%clk 00:06:01]} {[%emt 00:01:05]} Qc7 {[%clk 00:12:19]} {[%emt 00:00:41]} 19.
Rab1 {[%clk 00:05:44]} {[%emt 00:00:23]} Bd5 {[%clk 00:11:49]} {[%emt
00:00:34]} 20. Bh3 {[%clk 00:03:22]} {[%emt 00:02:27]} Bxf3 {[%clk 00:11:43]}
{[%emt 00:00:12]} 21. exf3 {[%clk 00:03:22]} {[%emt 00:00:01]} Ne5 {[%clk
00:11:39]} {[%emt 00:00:09]} 22. Kh1 {[%clk 00:02:47]} {[%emt 00:00:40]} Nxf3
{[%clk 00:11:30]} {[%emt 00:00:14]} 23. Qe2 {[%clk 00:02:29]} {[%emt 00:00:21]}
Nxh4 {[%clk 00:10:52]} {[%emt 00:00:45]} 24. Qa6 {[%clk 00:01:36]} {[%emt
00:00:57]} Ne4 {[%clk 00:09:52]} {[%emt 00:01:04]} 25. Rf1 {[%clk 00:00:39]}
{[%emt 00:01:03]} Nxg3+ {[%clk 00:09:07]} {[%emt 00:00:49]} 26. fxg3 {[%clk
00:00:32]} {[%emt 00:00:13]} Qxg3 {[%clk 00:09:07]} {[%emt 00:00:05]} 0-1

[Event "Chpt France Universitaire 2024"]
[Site "Bastia, France"]
[Date "2024.04.06"]
[Round "1.9"]
[White "Maache, Jawad"]
[Black "Peuziat, Nathan"]
[Result "1-0"]
[TimeControl "15min+5s"]
[WhiteElo "2154"]
[BlackElo "1588"]

1. d4 {[%clk 00:15:05]} {[%emt 00:00:02]} Nf6 {[%clk 00:15:05]} {[%emt
00:00:02]} 2. Nc3 {[%clk 00:15:05]} {[%emt 00:00:02]} g6 {[%clk 00:15:05]}
{[%emt 00:00:04]} 3. Bf4 {[%clk 00:15:05]} {[%emt 00:00:04]} b6 {[%clk
00:14:56]} {[%emt 00:00:16]} 4. e4 {[%clk 00:14:57]} {[%emt 00:00:12]} Bg7
{[%clk 00:14:39]} {[%emt 00:00:22]} 5. e5 {[%clk 00:14:53]} {[%emt 00:00:09]}
Ng8 {[%clk 00:14:31]} {[%emt 00:00:13]} 6. Qf3 {[%clk 00:14:42]} {[%emt
00:00:15]} Nc6 {[%clk 00:14:05]} {[%emt 00:00:32]} 7. O-O-O {[%clk 00:14:35]}
{[%emt 00:00:11]} e6 {[%clk 00:13:16]} {[%emt 00:00:54]} 8. d5 {[%clk
00:14:02]} {[%emt 00:00:38]} Na5 {[%clk 00:12:17]} {[%emt 00:01:04]} 9. dxe6
{[%clk 00:13:40]} {[%emt 00:00:26]} Bb7 {[%clk 00:11:43]} {[%emt 00:00:40]} 10.
exf7+ {[%clk 00:12:52]} {[%emt 00:00:52]} Kxf7 {[%clk 00:11:43]} {[%emt
00:00:03]} 11. Qh3 {[%clk 00:12:07]} {[%emt 00:00:50]} Bc8 {[%clk 00:10:58]}
{[%emt 00:00:50]} 12. Nf3 {[%clk 00:10:52]} {[%emt 00:01:19]} Ne7 {[%clk
00:09:48]} {[%emt 00:01:16]} 13. e6+ {[%clk 00:10:13]} {[%emt 00:00:44]} Kf8
{[%clk 00:08:34]} {[%emt 00:01:19]} 14. exd7 {[%clk 00:09:48]} {[%emt
00:00:29]} Bb7 {[%clk 00:08:13]} {[%emt 00:00:26]} 15. Ng5 {[%clk 00:09:44]}
{[%emt 00:00:08]} 1-0

[Event "Chpt France Universitaire 2024"]
[Site "Bastia, France"]
[Date "2024.04.06"]
[Round "1.10"]
[White "Porteix, Come"]
[Black "Cahen, Alexis"]
[Result "0-1"]
[TimeControl "15min+5s"]
[WhiteElo "1199"]
[BlackElo "2060"]

1. e4 {[%clk 00:15:05]} {[%emt 00:00:02]} c5 {[%clk 00:15:03]} {[%emt
00:00:07]} 2. c3 {[%clk 00:15:05]} {[%emt 00:00:03]} d5 {[%clk 00:14:58]}
{[%emt 00:00:09]} 3. exd5 {[%clk 00:15:05]} {[%emt 00:00:03]} Qxd5 {[%clk
00:14:58]} {[%emt 00:00:02]} 4. d4 {[%clk 00:15:05]} {[%emt 00:00:02]} Nf6
{[%clk 00:14:55]} {[%emt 00:00:08]} 5. Nf3 {[%clk 00:15:05]} {[%emt 00:00:06]}
Nc6 {[%clk 00:14:53]} {[%emt 00:00:07]} 6. c4 {[%clk 00:15:05]} {[%emt
00:00:03]} Qe4+ {[%clk 00:14:04]} {[%emt 00:00:54]} 7. Be3 {[%clk 00:15:05]}
{[%emt 00:00:02]} cxd4 {[%clk 00:13:56]} {[%emt 00:00:13]} 8. Nxd4 {[%clk
00:14:50]} {[%emt 00:00:20]} Bg4 {[%clk 00:12:33]} {[%emt 00:01:28]} 9. Nf3
{[%clk 00:13:21]} {[%emt 00:01:34]} Rd8 {[%clk 00:12:04]} {[%emt 00:00:34]} 10.
Nbd2 {[%clk 00:12:52]} {[%emt 00:00:34]} Qg6 {[%clk 00:10:10]} {[%emt
00:01:58]} 11. Qb3 {[%clk 00:12:36]} {[%emt 00:00:23]} Rd7 {[%clk 00:09:07]}
{[%emt 00:01:07]} 12. Rd1 {[%clk 00:11:41]} {[%emt 00:01:00]} e5 {[%clk
00:08:10]} {[%emt 00:01:02]} 13. Bxa7 {[%clk 00:10:17]} {[%emt 00:01:29]} e4
{[%clk 00:06:29]} {[%emt 00:01:46]} 14. Qe3 {[%clk 00:09:38]} {[%emt 00:00:44]}
Be7 {[%clk 00:05:09]} {[%emt 00:01:24]} 15. Nd4 {[%clk 00:06:51]} {[%emt
00:02:53]} Bxd1 {[%clk 00:04:58]} {[%emt 00:00:16]} 16. Nxc6 {[%clk 00:06:51]}
{[%emt 00:00:02]} bxc6 {[%clk 00:04:42]} {[%emt 00:00:22]} 17. Kxd1 {[%clk
00:06:46]} {[%emt 00:00:10]} Bb4 {[%clk 00:03:02]} {[%emt 00:01:45]} 18. Bd4
{[%clk 00:05:10]} {[%emt 00:01:41]} c5 {[%clk 00:02:26]} {[%emt 00:00:41]} 19.
Bc3 {[%clk 00:04:57]} {[%emt 00:00:18]} Ng4 {[%clk 00:01:50]} {[%emt 00:00:41]}
20. Qf4 {[%clk 00:04:09]} {[%emt 00:00:53]} Bxc3 {[%clk 00:01:22]} {[%emt
00:00:33]} 21. bxc3 {[%clk 00:04:03]} {[%emt 00:00:10]} O-O {[%clk 00:01:05]}
{[%emt 00:00:21]} 22. Ke1 {[%clk 00:02:22]} {[%emt 00:01:47]} Rfd8 {[%clk
00:00:59]} {[%emt 00:00:11]} 23. Nxe4 {[%clk 00:01:09]} {[%emt 00:01:18]} Re7
{[%clk 00:00:59]} {[%emt 00:00:02]} 24. f3 {[%clk 00:01:03]} {[%emt 00:00:11]}
f5 {[%clk 00:00:58]} {[%emt 00:00:06]} 25. Be2 {[%clk 00:00:31]} {[%emt
00:00:37]} fxe4 {[%clk 00:00:58]} {[%emt 00:00:04]} 26. fxe4 {[%clk 00:00:31]}
{[%emt 00:00:03]} Qxe4 {[%clk 00:00:39]} {[%emt 00:00:23]} 27. Qxe4 {[%clk
00:00:31]} {[%emt 00:00:04]} Rxe4 {[%clk 00:00:39]} {[%emt 00:00:01]} 28. h3
{[%clk 00:00:30]} {[%emt 00:00:06]} Rde8 {[%clk 00:00:39]} {[%emt 00:00:02]} 29.
hxg4 {[%clk 00:00:29]} {[%emt 00:00:06]} Rxe2+ {[%clk 00:00:39]} {[%emt
00:00:02]} 30. Kf1 {[%clk 00:00:29]} {[%emt 00:00:01]} Rxa2 {[%clk 00:00:39]}
{[%emt 00:00:05]} 31. Rh5 {[%clk 00:00:29]} {[%emt 00:00:03]} Ra5 {[%clk
00:00:39]} {[%emt 00:00:06]} 32. Kf2 {[%clk 00:00:29]} {[%emt 00:00:03]} g6
{[%clk 00:00:39]} {[%emt 00:00:02]} 33. Rd5 {[%clk 00:00:29]} {[%emt 00:00:01]}
Re4 {[%clk 00:00:39]} {[%emt 00:00:03]} 34. Kf3 {[%clk 00:00:29]} {[%emt
00:00:04]} Rxc4 {[%clk 00:00:39]} {[%emt 00:00:02]} 35. Rd8+ {[%clk 00:00:29]}
{[%emt 00:00:02]} Kg7 {[%clk 00:00:39]} {[%emt 00:00:01]} 36. Rd7+ {[%clk
00:00:29]} {[%emt 00:00:01]} Kh6 {[%clk 00:00:32]} {[%emt 00:00:12]} 37. Kg3
{[%clk 00:00:29]} {[%emt 00:00:03]} Rxc3+ {[%clk 00:00:30]} {[%emt 00:00:07]}
38. Kh4 {[%clk 00:00:29]} g5# {[%clk 00:00:30]} {[%emt 00:00:01]} 0-1

[Event "Chpt France Universitaire 2024"]
[Site "Bastia, France"]
[Date "2024.04.06"]
[Round "1.11"]
[White "Budak, Rewi"]
[Black "Giraud, Hugues"]
[Result "1-0"]
[TimeControl "15min+5s"]
[WhiteElo "2112"]
[BlackElo "1650"]

1. e4 {[%clk 00:15:05]} {[%emt 00:00:02]} e6 {[%clk 00:15:05]} {[%emt
00:00:03]} 2. d4 {[%clk 00:15:05]} {[%emt 00:00:02]} d5 {[%clk 00:15:05]}
{[%emt 00:00:03]} 3. Nd2 {[%clk 00:15:05]} {[%emt 00:00:02]} c5 {[%clk
00:14:56]} {[%emt 00:00:15]} 4. Ngf3 {[%clk 00:14:47]} {[%emt 00:00:23]} b6
{[%clk 00:14:26]} {[%emt 00:00:35]} 5. exd5 {[%clk 00:14:47]} {[%emt 00:00:05]}
exd5 {[%clk 00:14:24]} {[%emt 00:00:07]} 6. Bb5+ {[%clk 00:14:31]} {[%emt
00:00:21]} Bd7 {[%clk 00:14:23]} {[%emt 00:00:06]} 7. Qe2+ {[%clk 00:14:31]}
{[%emt 00:00:02]} Be7 {[%clk 00:14:10]} {[%emt 00:00:19]} 8. O-O {[%clk
00:14:26]} {[%emt 00:00:10]} Nf6 {[%clk 00:14:10]} {[%emt 00:00:03]} 9. Ne5
{[%clk 00:14:17]} {[%emt 00:00:14]} O-O {[%clk 00:14:01]} {[%emt 00:00:14]} 10.
Nxd7 {[%clk 00:14:11]} {[%emt 00:00:11]} Nbxd7 {[%clk 00:14:01]} {[%emt
00:00:03]} 11. c3 {[%clk 00:14:05]} {[%emt 00:00:12]} a6 {[%clk 00:13:59]}
{[%emt 00:00:07]} 12. Bxa6 {[%clk 00:13:54]} {[%emt 00:00:16]} Re8 {[%clk
00:13:12]} {[%emt 00:00:52]} 13. Bd3 {[%clk 00:13:54]} {[%emt 00:00:03]} Bd6
{[%clk 00:12:56]} {[%emt 00:00:21]} 14. Qf3 {[%clk 00:13:44]} {[%emt 00:00:15]}
Nf8 {[%clk 00:12:33]} {[%emt 00:00:28]} 15. Bb5 {[%clk 00:13:37]} {[%emt
00:00:12]} Re7 {[%clk 00:12:23]} {[%emt 00:00:14]} 16. Rd1 {[%clk 00:12:56]}
{[%emt 00:00:46]} c4 {[%clk 00:11:30]} {[%emt 00:00:59]} 17. b3 {[%clk
00:12:11]} {[%emt 00:00:49]} Ra5 {[%clk 00:11:22]} {[%emt 00:00:12]} 18. bxc4
{[%clk 00:12:11]} {[%emt 00:00:04]} dxc4 {[%clk 00:11:20]} {[%emt 00:00:07]} 19.
Bxc4 {[%clk 00:12:11]} {[%emt 00:00:04]} Rh5 {[%clk 00:11:20]} {[%emt
00:00:02]} 20. g3 {[%clk 00:11:44]} {[%emt 00:00:32]} Ng6 {[%clk 00:10:32]}
{[%emt 00:00:52]} 21. Nf1 {[%clk 00:10:41]} {[%emt 00:01:08]} Qc7 {[%clk
00:09:59]} {[%emt 00:00:39]} 22. Bb3 {[%clk 00:10:33]} {[%emt 00:00:14]} Ne4
{[%clk 00:09:44]} {[%emt 00:00:19]} 23. Qxh5 {[%clk 00:09:31]} {[%emt
00:01:07]} Nxc3 {[%clk 00:09:23]} {[%emt 00:00:27]} 24. Bg5 {[%clk 00:09:09]}
{[%emt 00:00:27]} Ne2+ {[%clk 00:09:23]} {[%emt 00:00:05]} 25. Kh1 {[%clk
00:07:47]} {[%emt 00:01:25]} Rd7 {[%clk 00:07:52]} {[%emt 00:01:37]} 26. Qxe2
{[%clk 00:07:47]} {[%emt 00:00:05]} h6 {[%clk 00:06:51]} {[%emt 00:01:06]} 27.
Qe4 {[%clk 00:06:50]} {[%emt 00:01:01]} Kh7 {[%clk 00:06:03]} {[%emt 00:00:53]}
28. Rac1 {[%clk 00:06:37]} {[%emt 00:00:18]} Qb8 {[%clk 00:05:34]} {[%emt
00:00:33]} 29. Be3 {[%clk 00:06:37]} {[%emt 00:00:04]} Re7 {[%clk 00:04:44]}
{[%emt 00:00:55]} 30. Qf3 {[%clk 00:06:37]} {[%emt 00:00:01]} Qa7 {[%clk
00:04:11]} {[%emt 00:00:38]} 31. Rc6 {[%clk 00:06:34]} {[%emt 00:00:08]} Be5
{[%clk 00:03:41]} {[%emt 00:00:33]} 32. dxe5 {[%clk 00:06:32]} {[%emt
00:00:08]} Nxe5 {[%clk 00:03:39]} {[%emt 00:00:07]} 33. Qe4+ {[%clk 00:06:18]}
{[%emt 00:00:18]} g6 {[%clk 00:03:39]} {[%emt 00:00:02]} 34. Rxb6 {[%clk
00:05:24]} {[%emt 00:01:00]} Qa3 {[%clk 00:02:12]} {[%emt 00:01:31]} 35. Bxf7
{[%clk 00:04:59]} {[%emt 00:00:30]} Nxf7 {[%clk 00:01:43]} {[%emt 00:00:35]} 36.
Qxg6+ {[%clk 00:04:59]} {[%emt 00:00:03]} Kh8 {[%clk 00:01:43]} {[%emt
00:00:03]} 37. Rb8+ {[%clk 00:04:56]} {[%emt 00:00:08]} Re8 {[%clk 00:01:21]}
{[%emt 00:00:27]} 38. Bd4+ {[%clk 00:04:48]} {[%emt 00:00:12]} Ne5 {[%clk
00:00:58]} {[%emt 00:00:28]} 39. Rxe8+ {[%clk 00:04:45]} {[%emt 00:00:08]} Qf8
{[%clk 00:00:58]} {[%emt 00:00:04]} 40. Bxe5# {[%emt 00:00:02]} 1-0

[Event "Chpt France Universitaire 2024"]
[Site "Bastia, France"]
[Date "2024.04.06"]
[Round "1.12"]
[White "Milesi, Antonin"]
[Black "Roux, Baptiste"]
[Result "0-1"]
[TimeControl "15min+5s"]
[WhiteElo "1681"]
[BlackElo "2361"]

1. e4 {[%clk 00:15:05]} {[%emt 00:00:02]} c5 {[%clk 00:14:59]} {[%emt
00:00:11]} 2. Nf3 {[%clk 00:15:05]} {[%emt 00:00:03]} a6 {[%clk 00:14:59]}
{[%emt 00:00:02]} 3. d4 {[%clk 00:15:05]} {[%emt 00:00:03]} cxd4 {[%clk
00:14:59]} {[%emt 00:00:02]} 4. Nxd4 {[%clk 00:15:05]} {[%emt 00:00:02]} Nf6
{[%clk 00:14:59]} 5. Nc3 {[%clk 00:15:05]} {[%emt 00:00:01]} e5 {[%clk
00:14:59]} {[%emt 00:00:01]} 6. Nde2 {[%clk 00:14:57]} {[%emt 00:00:13]} Bc5
{[%clk 00:14:50]} {[%emt 00:00:14]} 7. Ng3 {[%clk 00:13:42]} {[%emt 00:01:20]}
d6 {[%clk 00:14:38]} {[%emt 00:00:18]} 8. Be2 {[%clk 00:13:31]} {[%emt
00:00:16]} h6 {[%clk 00:14:16]} {[%emt 00:00:26]} 9. O-O {[%clk 00:13:23]}
{[%emt 00:00:12]} O-O {[%clk 00:14:14]} {[%emt 00:00:08]} 10. Nd5 {[%clk
00:12:12]} {[%emt 00:01:17]} Nxd5 {[%clk 00:12:16]} {[%emt 00:02:02]} 11. Qxd5
{[%clk 00:11:24]} {[%emt 00:00:52]} Nc6 {[%clk 00:12:16]} {[%emt 00:00:06]} 12.
c3 {[%clk 00:10:36]} {[%emt 00:00:53]} Be6 {[%clk 00:12:04]} {[%emt 00:00:17]}
13. Qd3 {[%clk 00:09:45]} {[%emt 00:00:56]} b5 {[%clk 00:09:27]} {[%emt
00:02:42]} 14. Be3 {[%clk 00:07:11]} {[%emt 00:02:39]} Qb6 {[%clk 00:07:52]}
{[%emt 00:01:40]} 15. Bxh6 {[%clk 00:03:31]} {[%emt 00:03:43]} gxh6 {[%clk
00:05:39]} {[%emt 00:02:19]} 16. b4 {[%clk 00:03:31]} {[%emt 00:00:02]} Nxb4
{[%clk 00:02:36]} {[%emt 00:03:09]} 17. cxb4 {[%clk 00:03:28]} {[%emt
00:00:08]} Bxb4 {[%clk 00:02:36]} 18. Nh5 {[%clk 00:03:10]} {[%emt 00:00:23]}
Qd8 {[%clk 00:02:20]} {[%emt 00:00:21]} 19. f4 {[%clk 00:02:12]} {[%emt
00:01:02]} Kh8 {[%clk 00:01:56]} {[%emt 00:00:30]} 20. Kh1 {[%clk 00:01:34]}
{[%emt 00:00:43]} Bc4 {[%clk 00:01:33]} {[%emt 00:00:28]} 21. Qd1 {[%clk
00:00:42]} {[%emt 00:00:57]} Bxe2 {[%clk 00:00:23]} {[%emt 00:01:15]} 22. Qxe2
{[%clk 00:00:42]} {[%emt 00:00:01]} Bc3 {[%clk 00:00:23]} {[%emt 00:00:01]} 23.
Rad1 {[%clk 00:00:42]} {[%emt 00:00:05]} Bd4 {[%clk 00:00:23]} {[%emt
00:00:05]} 24. Rd3 {[%clk 00:00:42]} {[%emt 00:00:03]} Qe7 {[%clk 00:00:16]}
{[%emt 00:00:12]} 25. Rh3 {[%clk 00:00:42]} {[%emt 00:00:03]} Rg8 {[%clk
00:00:16]} {[%emt 00:00:05]} 26. Qd2 {[%clk 00:00:24]} {[%emt 00:00:23]} Rg6
{[%clk 00:00:12]} {[%emt 00:00:09]} 27. f5 {[%clk 00:00:24]} {[%emt 00:00:03]}
Qg5 {[%clk 00:00:12]} {[%emt 00:00:02]} 28. fxg6 {[%clk 00:00:15]} {[%emt
00:02:00]} Qxd2 {[%clk 00:00:10]} {[%emt 00:00:02]} 29. g7+ {[%clk 00:00:15]}
{[%emt 00:00:01]} Kg8 {[%clk 00:00:10]} {[%emt 00:00:03]} 30. Rg3 {[%clk
00:00:15]} {[%emt 00:00:03]} Qg5 {[%clk 00:00:08]} {[%emt 00:00:07]} 31. Nf6+
{[%clk 00:00:15]} {[%emt 00:00:02]} Kxg7 {[%clk 00:00:08]} {[%emt 00:00:01]} 32.
Rxg5+ {[%clk 00:00:15]} {[%emt 00:00:04]} hxg5 {[%clk 00:00:08]} 33. Nd5 {[%clk
00:00:13]} {[%emt 00:00:08]} Rc8 {[%clk 00:00:08]} {[%emt 00:00:03]} 34. h3
{[%clk 00:00:13]} {[%emt 00:00:02]} Rc2 {[%clk 00:00:08]} {[%emt 00:00:02]} 35.
a4 {[%clk 00:00:13]} {[%emt 00:00:02]} bxa4 {[%clk 00:00:08]} 36. Nb4 {[%clk
00:00:12]} {[%emt 00:00:05]} Re2 {[%clk 00:00:08]} {[%emt 00:00:02]} 37. Rf3
{[%clk 00:00:12]} {[%emt 00:00:04]} Rxe4 {[%clk 00:00:08]} {[%emt 00:00:02]}
0-1